fUST/lending_fUST_20240921
["ID","MTS","AMOUNT","RATE_DAILY","PERIOD"]
[338813553,1726924262018,-500.0,0.00016021,2]
[338813554,1726924262028,-500.0,0.00016021,2]
[338813555,1726924262038,-1198.99,0.00016021,2]
[338813556,1726924262047,-300.96231367,0.00016021,2]
[338813557,1726924262057,-500.0,0.00016021,2]
[338813558,1726924262067,-500.0,0.00016021,2]
[338813559,1726924262077,-3000.0,0.0001603,2]
[338813560,1726924262087,-3000.0,0.0001604,2]
[338813561,1726924262096,-151.0,0.0001605,2]
[338813562,1726924262105,-151.0,0.0001605,2]
[338813563,1726924262115,-3000.0,0.0001605,2]
[338813564,1726924262127,-151.0,0.0001605,2]
[338813565,1726924262136,-155.993802,0.0001605,2]
[338813566,1726924262148,-155.993802,0.0001605,2]
[338813567,1726924262158,-192.951899,0.0001605,2]
[338813568,1726924262168,-478.879763,0.0001605,2]
[338813569,1726924262178,-192.951899,0.0001605,2]
[338813570,1726924262187,-478.879763,0.0001605,2]
[338813571,1726924262197,-3000.0,0.0001606,2]
[338813572,1726924262206,-3000.0,0.0001607,2]
[338813573,1726924262215,-3000.0,0.0001608,2]
[338813574,1726924262227,-3000.0,0.0001609,2]
[338813575,1726924262237,-3000.0,0.000161,2]
[338813576,1726924262246,-3000.0,0.0001611,2]
[338813577,1726924262255,-160.0,0.00016118,3]
[338813578,1726924262264,-3000.0,0.0001612,2]
[338813579,1726924262273,-3000.0,0.0001613,2]
[338813580,1726924262282,-1159.9521126,0.0001613,2]
[338813581,1726924262291,-3000.0,0.0001614,2]
[338813582,1726924262301,-3000.0,0.0001615,2]
[338813583,1726924262310,-3000.0,0.0001616,2]
[338813584,1726924262322,-153.650265,0.0001617,2]
[338813585,1726924262332,-151.0,0.0001617,2]
[338813586,1726924262341,-151.0,0.0001617,2]
[338813587,1726924262350,-3000.0,0.0001617,2]
[338813588,1726924262360,-600.0,0.00016176,2]
[338813589,1726924262369,-1633.912576,0.00016177,2]
[338813590,1726924262378,-398.697525,0.00016177,2]
[338813591,1726924262387,-168.514112,0.00016177,2]
[338813592,1726924262397,-369.216815,0.00016177,2]
[338813593,1726924262406,-184.608407,0.00016177,2]
[338813594,1726924262415,-406.52202,0.00016177,2]
[338813595,1726924262424,-3000.0,0.0001618,2]
[338813596,1726924262433,-3000.0,0.0001619,2]
[338813597,1726924262443,-3000.0,0.000162,2]
[338813598,1726924262452,-151.01030865,0.00016205,2]
[338813599,1726924262461,-3000.0,0.0001621,2]
[338813600,1726924262470,-3000.0,0.0001622,2]
[338813601,1726924262479,-3000.0,0.0001623,2]
[338813602,1726924262487,-3000.0,0.0001624,2]
[338813603,1726924262496,-151.0,0.0001624,2]
[338813604,1726924262506,-173.393541,0.0001624,2]
[338813606,1726924262515,-613.624449,0.0001624,2]
[338813607,1726924262524,-173.393541,0.0001624,2]
[338813608,1726924262532,-613.624449,0.0001624,2]
[338813609,1726924262542,-151.0,0.0001624,2]
[338813610,1726924262551,-151.0,0.0001625,2]
[338813611,1726924262559,-151.0,0.0001625,2]
[338813612,1726924262569,-3000.0,0.0001625,2]
[338813613,1726924262578,-151.0,0.0001625,2]
[338813614,1726924262588,-656.224211,0.0001625,2]
[338813615,1726924262597,-656.224211,0.0001625,2]
[338813616,1726924262606,-547.145498,0.0001625,2]
[338813617,1726924262616,-547.145498,0.0001625,2]
[338813618,1726924262625,-896.485706,0.0001625,2]
[338813619,1726924262635,-896.485706,0.0001625,2]
[338813620,1726924262644,-749.79205,0.0001625,2]
[338813621,1726924262653,-749.79205,0.0001625,2]
[338813622,1726924262662,-3000.0,0.0001626,2]
[338813623,1726924262671,-3000.0,0.0001627,2]
[338813624,1726924262680,-500.0,0.0001627,2]
[338813625,1726924262690,-500.0,0.0001627,2]
[338813626,1726924262699,-545.9,0.0001627,2]
[338813627,1726924262709,-500.0,0.0001627,2]
[338813628,1726924262718,-551.19,0.0001627,2]
[338813629,1726924262727,-14291.56,0.0001627,2]
[338813630,1726924262738,-2088.63,0.0001627,2]
[338813631,1726924262749,-560.88,0.0001628,2]
[338813632,1726924262760,-500.0,0.0001628,2]
[338813633,1726924262769,-911.33,0.0001628,2]
[338813634,1726924262779,-418.76433122,0.0001628,2]
[338813635,1726924262790,-662.09,0.0001628,2]
[338813636,1726924262800,-500.0,0.0001628,2]
[338813637,1726924262810,-711.92,0.0001628,2]
[338813638,1726924262821,-3000.0,0.0001628,2]
[338813639,1726924262832,-500.0,0.0001628,2]
[338813640,1726924262842,-500.0,0.0001628,2]
[338813641,1726924262851,-500.0,0.0001628,2]
[338813642,1726924262861,-500.0,0.0001628,2]
[338813643,1726924262871,-500.0,0.0001628,2]
[338813644,1726924262880,-500.0,0.0001628,2]
[338813645,1726924262890,-500.0,0.0001628,2]
[338813646,1726924262899,-500.0,0.0001628,2]
[338813647,1726924262909,-500.0,0.0001628,2]
[338813648,1726924262918,-534.94,0.0001628,2]
[338813649,1726924262928,-1452.5,0.0001628,2]
[338813650,1726924262939,-692.29,0.0001628,2]
[338813651,1726924262949,-375.08,0.0001628,2]
[338813652,1726924262959,-500.0,0.0001628,2]
[338813653,1726924262968,-500.0,0.0001628,2]
[338813654,1726924262978,-500.0,0.0001628,2]
[338813655,1726924262988,-500.0,0.0001628,2]
[338813656,1726924262998,-500.0,0.0001628,2]
[338813657,1726924263007,-151.0,0.00016284,2]
[338813658,1726924263017,-500.0,0.00016286,2]
[338813659,1726924263026,-636.96,0.00016286,2]
[338813660,1726924263037,-500.0,0.00016286,2]
[338813661,1726924263046,-611.68,0.00016286,2]
[338813662,1726924263056,-500.0,0.00016286,2]
[338813663,1726924263066,-3000.0,0.0001629,2]
[338813664,1726924263077,-864.53,0.00016295,2]
[338813665,1726924263087,-567.08,0.00016295,2]
[338813666,1726924263097,-594.58,0.00016295,2]
[338813667,1726924263106,-500.0,0.00016295,2]
[338813668,1726924263116,-500.0,0.00016295,2]
[338813669,1726924263126,-621.94,0.00016295,2]
[338813670,1726924263136,-500.0,0.00016295,2]
[338813671,1726924263148,-500.0,0.00016295,2]
[338813672,1726924263158,-500.0,0.00016295,2]
[338813673,1726924263168,-500.0,0.00016295,2]
[338813674,1726924263178,-500.0,0.00016295,2]
[338813675,1726924263187,-1198.99,0.00016295,2]
[338813676,1726924263198,-500.0,0.00016295,2]
[338813677,1726924263208,-500.0,0.00016295,2]
[338813678,1726924263218,-240.472061,0.00016295,2]
[338813679,1726924263228,-240.472061,0.00016295,2]
[338813680,1726924263237,-151.0,0.00016295,2]
[338813681,1726924263248,-1612.19724,0.00016295,2]
[338813682,1726924263258,-1612.19724,0.00016295,2]
[338813683,1726924263268,-151.0,0.00016295,2]
[338813684,1726924263278,-151.0,0.00016295,2]
[338813685,1726924263288,-286.924255,0.00016295,2]
[338813686,1726924263297,-151.0,0.00016295,2]
[338813687,1726924263306,-617.081594,0.00016295,2]
[338813688,1726924263316,-474.87448,0.00016295,2]
[338813689,1726924263326,-617.081594,0.00016295,2]
[338813690,1726924263335,-474.87448,0.00016295,2]
[338813691,1726924263345,-151.0,0.00016295,2]
[338813692,1726924263354,-198.449634,0.00016295,2]
[338813693,1726924263363,-198.449634,0.00016295,2]
[338813694,1726924263372,-151.0,0.00016295,2]
[338813695,1726924263382,-151.0,0.00016295,2]
[338813696,1726924263391,-263.055659,0.00016295,2]
[338813697,1726924263401,-263.055659,0.00016295,2]
[338813698,1726924263410,-1305.675898,0.00016295,2]
[338813699,1726924263420,-1305.675898,0.00016295,2]
[338813700,1726924263430,-151.0,0.00016295,2]
[338813701,1726924263441,-974.882643,0.00016295,2]
[338813702,1726924263452,-974.882643,0.00016295,2]
[338813703,1726924263462,-3000.0,0.000163,2]
[338813704,1726924263471,-152.524121,0.00016305,2]
[338813705,1726924263480,-151.0,0.00016305,2]
[338813706,1726924263490,-151.0,0.00016305,2]
[338813707,1726924263500,-151.0,0.00016305,2]
[338813708,1726924263510,-3000.0,0.0001631,2]
[338813709,1726924263521,-3000.0,0.0001632,2]
[338813710,1726924263531,-3000.0,0.0001633,2]
[338813711,1726924263540,-3000.0,0.0001634,2]
[338813712,1726924263550,-600.0,0.00016341,2]
[338813713,1726924263560,-3000.0,0.0001635,2]
[338813714,1726924263570,-957.18881991,0.00016359,2]
[338813715,1726924263579,-1000.0,0.00016359,2]
[338813716,1726924263588,-3000.0,0.0001636,2]
[338813717,1726924263597,-3000.0,0.0001637,2]
[338813718,1726924263606,-3000.0,0.0001638,2]
[338813719,1726924263616,-205.0,0.0001638,2]
[338813720,1726924263628,-3000.0,0.0001639,2]
[338813721,1726924263637,-160.0,0.00016392,4]
[338813722,1726924263647,-3000.0,0.000164,2]
[338813723,1726924263656,-3000.0,0.0001641,2]
[338813724,1726924263665,-181.097904,0.0001642,2]
[338813725,1726924263675,-151.0,0.0001642,2]
[338813726,1726924263684,-181.097904,0.0001642,2]
[338813727,1726924263694,-3000.0,0.0001642,2]
[338813728,1726924263703,-151.0,0.0001642,2]
[338813729,1726924263713,-151.0,0.0001642,2]
[338813730,1726924263722,-1292.53096,0.0001642,2]
[338813731,1726924263732,-1292.53096,0.0001642,2]
[338813732,1726924263742,-339.270884,0.0001643,2]
[338813733,1726924263752,-339.270884,0.0001643,2]
[338813734,1726924263761,-151.0,0.0001643,2]
[338813735,1726924263770,-151.0,0.0001643,2]
[338813736,1726924263780,-151.0,0.0001643,2]
[338813737,1726924263789,-151.0,0.0001643,2]
[338813738,1726924263799,-3000.0,0.0001643,2]
[338813739,1726924263808,-190.52781758,0.00016434,2]
[338813740,1726924263817,-200.0,0.00016438,2]
[338813741,1726924263827,-200.0,0.00016438,2]
[338813742,1726924263836,-200.0,0.00016438,2]
[338813743,1726924263845,-200.0,0.00016438,2]
[338813744,1726924263855,-200.0,0.00016438,2]
[338813745,1726924263864,-200.0,0.00016438,2]
[338813746,1726924263873,-200.0,0.00016438,2]
[338813747,1726924263883,-200.0,0.00016438,2]
[338813748,1726924263892,-200.0,0.00016438,2]
[338813749,1726924263902,-460.6,0.00016438,2]
[338813750,1726924263912,-151.0,0.00016438,2]
[338813751,1726924263922,-151.0,0.00016438,2]
[338813752,1726924263932,-151.0,0.00016438,2]
[338813753,1726924263941,-195.975159,0.00016438,2]
[338813754,1726924263951,-151.0,0.00016438,2]
[338813755,1726924263962,-151.0,0.00016438,2]
[338813756,1726924263972,-151.0,0.00016438,2]
[338813757,1726924263982,-151.0,0.00016438,2]
[338813758,1726924263993,-151.0,0.00016438,2]
[338813759,1726924264003,-151.0,0.00016438,2]
[338813760,1726924264013,-151.0,0.00016438,2]
[338813761,1726924264022,-151.0,0.00016438,2]
[338813762,1726924264032,-3000.0,0.0001644,2]
[338813763,1726924264042,-3000.0,0.0001645,2]
[338813764,1726924264052,-151.0,0.0001645,2]
[338813765,1726924264181,-341.857273,0.0001645,2]
[338813766,1726924264191,-341.857273,0.0001645,2]
[338813767,1726924264203,-3000.0,0.0001646,2]
[338813768,1726924264213,-151.0,0.0001646,2]
[338813769,1726924264223,-155.993802,0.0001646,2]
[338813770,1726924264234,-155.993802,0.0001646,2]
[338813771,1726924264244,-192.951899,0.0001646,2]
[338813772,1726924264254,-169.82269155,0.0001646,2]
[338813773,1726924264636,-500.0,0.00014088,2]
[338813774,1726924264646,-500.0,0.00014088,2]
[338813775,1726924264654,-500.0,0.00014088,2]
[338813776,1726924264664,-500.0,0.00014088,2]
[338813777,1726924264673,-500.0,0.00014088,2]
[338813778,1726924264682,-411.779161,0.00014292,2]
[338813779,1726924264691,-411.779161,0.00014292,2]
[338813780,1726924264700,-500.0,0.00014362,2]
[338813781,1726924264710,-500.88986709,0.00014362,2]
[338813782,1726924264719,-500.0,0.00014362,2]
[338813783,1726924264729,-411.779161,0.00014378,2]
[338813784,1726924264739,-411.779161,0.00014378,2]
[338813785,1726924264748,-500.0,0.00014636,2]
[338813786,1726924264758,-500.0,0.00014636,2]
[338813787,1726924264768,-411.779161,0.0001491,2]
[338813788,1726924264777,-500.0,0.0001491,2]
[338813789,1726924264787,-500.614042,0.0001491,2]
[338813790,1726924264798,-411.779161,0.0001491,2]
[338813791,1726924264809,-500.0,0.00015184,2]
[338813792,1726924264818,-500.0,0.00015458,2]
[338813793,1726924264827,-411.779161,0.00015458,2]
[338813794,1726924264838,-164.43617405,0.00015732,2]
[338813795,1726924264849,-411.779161,0.00016011,2]
[338813796,1726924264859,-411.779161,0.0001642,2]
[338813797,1726924264868,-309.05707145,0.0001646,2]
[338813798,1726924264878,-192.951899,0.0001646,2]
[338813799,1726924264888,-478.879763,0.0001646,2]
[338813800,1726924264897,-3000.0,0.0001647,2]
[338813801,1726924264906,-3000.0,0.0001648,2]
[338813802,1726924264916,-3000.0,0.0001649,2]
[338813803,1726924264925,-2000.0,0.000165,2]
[338813804,1726924264935,-3000.0,0.000165,2]
[338813805,1726924264944,-1001.607931,0.000165,2]
[338813806,1726924264954,-600.0,0.00016506,2]
[338813807,1726924264963,-3000.0,0.0001651,2]
[338813808,1726924264973,-151.0,0.0001652,2]
[338813809,1726924264982,-151.0,0.0001652,2]
[338813810,1726924264992,-3000.0,0.0001652,2]
[338813811,1726924265002,-3000.0,0.0001653,2]
[338813812,1726924265011,-151.0,0.0001654,2]
[338813813,1726924265020,-151.0,0.0001654,2]
[338813814,1726924265030,-3000.0,0.0001654,2]
[338813815,1726924265040,-500.0,0.00016544,2]
[338813816,1726924265049,-500.0,0.00016544,2]
[338813817,1726924265059,-545.9,0.00016544,2]
[338813818,1726924265068,-500.0,0.00016544,2]
[338813819,1726924265078,-551.19,0.00016544,2]
[338813820,1726924265088,-14291.56,0.00016544,2]
[338813821,1726924265098,-2088.63,0.00016544,2]
[338813822,1726924265107,-3000.0,0.0001655,2]
[338813823,1726924265116,-560.88,0.00016554,2]
[338813824,1726924265125,-500.0,0.00016554,2]
[338813825,1726924265134,-911.33,0.00016554,2]
[338813826,1726924265145,-200.0,0.00016554,2]
[338813827,1726924265157,-662.09,0.00016554,2]
[338813828,1726924265168,-500.0,0.00016554,2]
[338813829,1726924265177,-711.92,0.00016554,2]
[338813830,1726924265186,-415.97575143,0.00016554,2]
[338813831,1726924265196,-500.0,0.00016554,2]
[338813832,1726924265205,-500.0,0.00016554,2]
[338813833,1726924265214,-500.0,0.00016554,2]
[338813834,1726924265224,-500.0,0.00016554,2]
[338813835,1726924265233,-500.0,0.00016554,2]
[338813836,1726924265243,-500.0,0.00016554,2]
[338813837,1726924265252,-212.83752975,0.00016554,2]
[338813838,1726924265262,-500.0,0.00016554,2]
[338813839,1726924265272,-534.94,0.00016554,2]
[338813840,1726924265281,-1452.5,0.00016554,2]
[338813841,1726924265290,-692.29,0.00016554,2]
[338813842,1726924265300,-352.1,0.00016554,2]
[338813843,1726924265309,-500.0,0.00016554,2]
[338813844,1726924265318,-500.0,0.00016554,2]
[338813845,1726924265328,-500.0,0.00016554,2]
[338813846,1726924265337,-500.0,0.00016554,2]
[338813847,1726924265347,-500.0,0.0001656,2]
[338813848,1726924265356,-636.96,0.0001656,2]
[338813849,1726924265366,-500.0,0.0001656,2]
[338813850,1726924265375,-611.68,0.0001656,2]
[338813851,1726924265384,-500.0,0.0001656,2]
[338813852,1726924265393,-3000.0,0.0001656,2]
[338813853,1726924265402,-864.53,0.00016569,2]
[338813854,1726924265411,-151.0,0.00016569,2]
[338813855,1726924265421,-567.08,0.00016569,2]
[338813856,1726924265430,-151.0,0.00016569,2]
[338813857,1726924265439,-594.58,0.00016569,2]
[338813858,1726924265449,-500.0,0.00016569,2]
[338813859,1726924265458,-387.42461065,0.00016569,2]
[338813860,1726924265467,-621.94,0.00016569,2]
[338813861,1726924265477,-500.0,0.00016569,2]
[338813862,1726924265487,-500.0,0.00016569,2]
[338813863,1726924265496,-553.4502816,0.00016569,2]
[338813864,1726924265506,-152.31633798,0.00016569,2]
[338813865,1726924265515,-500.0,0.00016569,2]
[338813866,1726924265524,-1198.99,0.00016569,2]
[338813867,1726924265533,-179.59762944,0.00016569,2]
[338813868,1726924265542,-500.0,0.00016569,2]
[338813869,1726924265551,-151.0,0.00016569,2]
[338813870,1726924265560,-656.224211,0.00016569,2]
[338813871,1726924265570,-656.224211,0.00016569,2]
[338813872,1726924265579,-547.145498,0.00016569,2]
[338813873,1726924265588,-547.145498,0.00016569,2]
[338813874,1726924265597,-896.485706,0.00016569,2]
[338813875,1726924265606,-896.485706,0.00016569,2]
[338813876,1726924265615,-749.79205,0.00016569,2]
[338813877,1726924265624,-749.79205,0.00016569,2]
[338813878,1726924265633,-3000.0,0.0001657,2]
[338813879,1726924265642,-620.04584961,0.0001658,2]
[338813880,1726924265650,-3000.0,0.0001658,2]
[338813881,1726924265659,-151.0,0.00016589,2]
[338813882,1726924265669,-3000.0,0.0001659,2]
[338813883,1726924265678,-3000.0,0.000166,2]
[338813884,1726924265687,-3000.0,0.0001661,2]
[338813885,1726924265696,-151.0,0.0001661,2]
[338813886,1726924265706,-173.393541,0.0001661,2]
[338813887,1726924265715,-613.624449,0.0001661,2]
[338813888,1726924265726,-173.393541,0.0001661,2]
[338813889,1726924265738,-613.624449,0.0001661,2]
[338813890,1726924265751,-151.0,0.0001661,2]
[338813891,1726924265760,-3000.0,0.0001662,2]
[338813892,1726924265769,-3603.19142,0.0001663,2]
[338813893,1726924265779,-1159.9521126,0.0001663,2]
[338813894,1726924265788,-160.0,0.00016665,5]
[338813895,1726924265802,-600.0,0.00016671,2]
[338813896,1726924265813,-31748.28616679,0.00016679,7]
[338813897,1726924265823,-1612.19724,0.00016679,2]
[338813898,1726924265832,-1612.19724,0.00016679,2]
[338813899,1726924265841,-151.0,0.00016679,2]
[338813900,1726924265851,-151.0,0.00016679,2]
[338813901,1726924265861,-151.0,0.00016679,2]
[338813902,1726924265870,-617.081594,0.00016679,2]
[338813903,1726924265880,-474.87448,0.00016679,2]
[338813904,1726924265889,-617.081594,0.00016679,2]
[338813905,1726924265898,-474.87448,0.00016679,2]
[338813906,1726924265907,-151.0,0.00016679,2]
[338813907,1726924265917,-198.449634,0.00016679,2]
[338813908,1726924265926,-198.449634,0.00016679,2]
[338813909,1726924265935,-151.0,0.00016679,2]
[338813910,1726924265944,-204.971967,0.00016679,2]
[338813911,1726924265954,-263.055659,0.00016679,2]
[338813912,1726924265963,-263.055659,0.00016679,2]
[338813913,1726924265973,-1305.675898,0.00016679,2]
[338813914,1726924265983,-1305.675898,0.00016679,2]
[338813915,1726924265993,-151.0,0.00016679,2]
[338813916,1726924266005,-974.882643,0.00016679,2]
[338813917,1726924266013,-974.882643,0.00016679,2]
[338813918,1726924266023,-160.98772376,0.000167,2]
[338813919,1726924266033,-460.6,0.00016712,2]
[338813920,1726924266043,-152.938434,0.00016771,2]
[338813921,1726924266052,-170.543723,0.00016771,2]
[338813922,1726924266061,-152.544998,0.00016771,2]
[338813923,1726924266071,-174.171446,0.00016771,2]
[338813924,1726924266080,-156.199746,0.00016771,2]
[338813925,1726924266090,-228.817497,0.00016771,2]
[338813926,1726924266099,-229.407652,0.00016771,2]
[338813927,1726924266109,-264.83037,0.00016771,2]
[338813928,1726924266119,-1059.32148,0.00016771,2]
[338813929,1726924266131,-240.472061,0.00016771,2]
[338813930,1726924266140,-240.472061,0.00016771,2]
[338813931,1726924266153,-151.0,0.00016771,2]
[338813932,1726924266162,-151.0,0.00016771,2]
[338813933,1726924266171,-151.0,0.00016771,2]
[338813934,1726924266181,-306.08758,0.000168,6]
[338813935,1726924266191,-49330.869997,0.00016818,3]
[338813936,1726924266200,-275.74945151,0.00016818,2]
[338813937,1726924266210,-545.9,0.00016818,2]
[338813938,1726924266219,-500.0,0.00016818,2]
[338813939,1726924266230,-551.19,0.00016818,2]
[338813940,1726924266239,-14291.56,0.00016818,2]
[338813941,1726924266250,-2088.63,0.00016818,2]
[338813942,1726924266259,-560.88,0.00016828,2]
[338813943,1726924266268,-500.0,0.00016828,2]
[338813944,1726924266278,-911.33,0.00016828,2]
[338813945,1726924266287,-200.0,0.00016828,2]
[338813946,1726924266297,-662.09,0.00016828,2]
[338813947,1726924266306,-500.0,0.00016828,2]
[338813948,1726924266316,-711.92,0.00016828,2]
[338813949,1726924266326,-513.92,0.00016828,2]
[338813950,1726924266335,-500.0,0.00016828,2]
[338813951,1726924266345,-500.0,0.00016828,2]
[338813952,1726924266355,-422.38419596,0.00016828,2]
[338813953,1726924266364,-500.0,0.00016828,2]
[338813954,1726924266374,-287.88726562,0.00016828,2]
[338813955,1726924266384,-500.0,0.00016828,2]
[338813956,1726924266393,-534.94,0.00016828,2]
[338813957,1726924266402,-1452.5,0.00016828,2]
[338813958,1726924266412,-692.29,0.00016828,2]
[338813959,1726924266422,-500.0,0.00016828,2]
[338813960,1726924266432,-500.0,0.00016828,2]
[338813961,1726924266442,-500.0,0.00016828,2]
[338813962,1726924266451,-641.0437565,0.00016828,2]
[338813963,1726924266461,-500.0,0.00016833,2]
[338813964,1726924266471,-636.96,0.00016833,2]
[338813965,1726924266480,-500.0,0.00016833,2]
[338813966,1726924266606,-611.68,0.00016833,2]
[338813967,1726924266616,-500.0,0.00016833,2]
[338813968,1726924266626,-600.0,0.00016836,2]
[338813969,1726924266635,-411.779161,0.00016842,2]
[338813970,1726924266644,-1072.38718634,0.00016842,2]
[338813971,1726924266653,-1000.0,0.00016842,2]
[338813972,1726924266662,-864.53,0.00016843,2]
[338813973,1726924266672,-567.08,0.00016843,2]
[338813974,1726924266682,-594.58,0.00016843,2]
[338813975,1726924266694,-500.0,0.00016843,2]
[338813976,1726924266706,-621.94,0.00016843,2]
[338813977,1726924266718,-500.0,0.00016843,2]
[338813978,1726924266731,-500.0,0.00016843,2]
[338813979,1726924266744,-151.0,0.00016843,2]
[338813980,1726924266753,-500.0,0.00016843,2]
[338813981,1726924266762,-1198.99,0.00016843,2]
[338813982,1726924266772,-151.064509,0.00016843,2]
[338813983,1726924266781,-170.28,0.00016843,2]
[338813984,1726924266793,-587.0,0.00016888,2]
[338813985,1726924266802,-276.526682,0.00016891,2]
[338813986,1726924266812,-3357.7,0.000169,2]
[338813987,1726924266824,-160.0,0.0001691,2]
[338813988,1726924266833,-160.0,0.00016939,6]
[338813989,1726924266845,-264.83037,0.00016981,2]
[338813990,1726924266854,-1059.32148,0.00016981,2]
[338813991,1726924266864,-460.6,0.00016986,2]
[338813992,1726924266873,-1000.0,0.00017,17]
[338813993,1726924266883,-181.097904,0.00017,2]
[338813994,1726924266893,-181.097904,0.00017,2]
[338813995,1726924266903,-151.0,0.00017,2]
[338813996,1726924266913,-151.0,0.00017,2]
[338813997,1726924266924,-1292.53096,0.00017,2]
[338813998,1726924266933,-1292.53096,0.00017,2]
[338813999,1726924266943,-2413.2,0.00017,3]
[338814000,1726924266954,-151.0,0.00017,2]
[338814001,1726924266963,-155.993802,0.00017,2]
[338814002,1726924266972,-1000.0,0.00017,2]
[338814003,1726924266982,-155.993802,0.00017,2]
[338814004,1726924266992,-192.951899,0.00017,2]
[338814005,1726924267001,-478.879763,0.00017,2]
[338814006,1726924267010,-192.951899,0.00017,2]
[338814007,1726924267019,-478.879763,0.00017,2]
[338814008,1726924267030,-600.0,0.00017001,2]
[338814009,1726924267039,-6490.68268434,0.00017026,2]
[338814010,1726924267050,-5000.0,0.00017026,2]
[338814011,1726924267060,-5000.0,0.00017026,2]
[338814012,1726924267069,-5000.0,0.00017026,2]
[338814013,1726924267078,-5000.0,0.00017026,2]
[338814014,1726924267087,-339.270884,0.00017026,2]
[338814015,1726924267096,-339.270884,0.00017026,2]
[338814016,1726924267105,-151.0,0.00017026,2]
[338814017,1726924267114,-151.0,0.00017026,2]
[338814018,1726924267123,-151.0,0.00017026,2]
[338814019,1726924267132,-151.0,0.00017026,2]
[338814020,1726924267141,-151.0,0.00017026,2]
[338814021,1726924267153,-341.857273,0.00017026,2]
[338814022,1726924267163,-341.857273,0.00017026,2]
[338814023,1726924267171,-151.0,0.00017036,2]
[338814024,1726924267182,-156.199746,0.0001705,2]
[338814025,1726924267193,-75292.06665917,0.00017092,3]
[338814028,1726924362401,1807.83317589,0.00013972,2]
[338814030,1726924410575,3000.0,0.00013086,2]
[338814031,1726924416985,190.13705497,0.00013988,2]
[338814032,1726924456018,250.0,0.00013188,2]
[338814033,1726924456227,250.0,0.00013224,2]
[338814034,1726924456664,250.0,0.00013261,2]
[338814035,1726924456925,250.0,0.00013297,2]
[338814036,1726924457143,250.0,0.00013333,2]
[338814037,1726924457364,250.0,0.00013369,2]
[338814038,1726924457598,250.0,0.00013405,2]
[338814039,1726924457814,250.0,0.00013441,2]
[338814040,1726924458049,250.0,0.00013477,2]
[338814041,1726924458293,250.0,0.00013514,2]
[338814042,1726924458565,250.0,0.0001355,2]
[338814043,1726924458775,250.0,0.00013586,2]
[338814044,1726924458988,250.0,0.00013622,2]
[338814045,1726924459394,250.0,0.00013658,2]
[338814046,1726924459815,250.0,0.00013694,2]
[338814047,1726924460253,250.0,0.00013731,2]
[338814048,1726924460483,250.0,0.00013767,2]
[338814049,1726924460902,250.0,0.00013803,2]
[338814050,1726924461115,250.0,0.00013839,2]
[338814051,1726924461338,250.0,0.00013875,2]
[338814052,1726924464880,250.0,0.0001309,2]
[338814056,1726924697136,198.05943224,0.00013972,2]
[338814057,1726924792681,291.089309,0.00013699,2]
[338814058,1726924828576,600.00000001,0.00013992,2]
[338814059,1726924836559,2750.53008062,0.00013988,2]